bitfinex/quotes_BTCUSD_20230907
["timestamp","ask_amount","ask_price","bid_price","bid_amount"]
[1694090535230,2.70605469,25689.0,25688.0,0.423736]
[1694090535872,2.69613886,25689.0,25688.0,0.423736]
[1694090536075,2.70365233,25689.0,25688.0,0.423736]
[1694090536935,2.69613886,25689.0,25688.0,0.423736]
[1694090537272,2.70472331,25689.0,25688.0,0.423736]
[1694090537491,2.78893022,25689.0,25688.0,0.423736]
[1694090537892,2.7978091,25689.0,25688.0,0.423736]
[1694090538458,2.70501774,25689.0,25688.0,0.423736]
[1694090538664,2.7978091,25689.0,25688.0,0.423736]
[1694090538872,2.70501774,25689.0,25688.0,0.423736]
[1694090539084,2.56501774,25689.0,25688.0,0.423736]
[1694090539294,2.68501774,25689.0,25688.0,0.423736]
[1694090539501,2.56501774,25689.0,25688.0,0.423736]
[1694090539951,2.56501774,25689.0,25688.0,0.393736]
[1694090539952,2.44226653,25689.0,25688.0,0.393736]
[1694090540357,2.52617901,25689.0,25688.0,0.393736]
[1694090540573,1.65484465,25689.0,25688.0,0.4698407]
[1694090540786,2.43338765,25689.0,25688.0,0.4698407]
[1694090543496,2.52617901,25689.0,25688.0,0.4698407]
[1694090543867,2.52082901,25689.0,25688.0,0.4698407]
[1694090544387,1.88147305,25689.0,25688.0,0.4698407]
[1694090544588,1.74228601,25689.0,25688.0,0.4698407]
[1694090544820,2.66001605,25689.0,25688.0,0.4698407]
[1694090545173,2.56722469,25689.0,25688.0,0.4698407]
[1694090545397,2.75280744,25689.0,25688.0,0.4698407]
[1694090546324,2.56722469,25689.0,25688.0,0.4698407]
[1694090546537,2.63653881,25689.0,25688.0,0.4698407]
[1694090546721,1.8350774,25689.0,25688.0,0.85839392]
[1694090546956,1.0565344,25689.0,25688.0,0.85839392]
[1694090547144,1.01064851,25689.0,25688.0,0.85839392]
[1694090547314,1.0565344,25689.0,25688.0,0.85839392]
[1694090547767,2.6136204,25689.0,25688.0,0.78228922]
[1694090547997,2.62166157,25689.0,25688.0,0.78228922]
[1694090548393,2.69184495,25689.0,25688.0,0.78228922]
[1694090548970,2.87812347,25689.0,25688.0,0.78228922]
[1694090549569,2.69184495,25689.0,25688.0,0.78228922]
[1694090556387,2.45899954,25689.0,25688.0,0.78228922]
[1694090576004,2.45095837,25689.0,25688.0,0.78228922]
[1694090578998,1.67241537,25689.0,25688.0,0.78228922]
[1694090579204,0.89387237,25689.0,25688.0,0.85859083]
[1694090580160,0.12273058,25689.0,25688.0,0.85859083]
[1694090581618,0.35571458,25689.0,25688.0,3.35870822]
[1694090581852,0.19301419,25689.0,25688.0,3.94830822]
[1694090582097,0.09980986,25689.0,25688.0,4.31766822]
[1694090582312,0.09980986,25689.0,25688.0,4.31514822]
[1694090582577,0.048,25689.0,25688.0,4.31616822]
[1694090582834,0.024,25689.0,25688.0,4.31562822]
[1694090583111,0.072934,25689.0,25688.0,4.24830822]
[1694090583354,0.048934,25689.0,25688.0,4.34196822]
[1694090583573,0.062934,25689.0,25688.0,4.34034822]
[1694090583759,0.022,25689.0,25688.0,4.32822822]
[1694090583919,0.008,25689.0,25688.0,4.33122822]
[1694090584196,0.23301082,25692.0,25691.0,0.12]
[1694090584455,0.23301082,25692.0,25691.0,3.28769922]
[1694090584646,0.09320433,25692.0,25691.0,3.28769922]
[1694090584886,0.14864554,25692.0,25691.0,3.28769922]
[1694090585752,0.14864554,25692.0,25691.0,3.44349722]
[1694090586777,0.05644121,25692.0,25691.0,3.44549722]
[1694090587375,0.05744121,25692.0,25691.0,3.44649722]
[1694090590856,0.06678297,25692.0,25691.0,0.99035122]
[1694090591266,0.1599873,25692.0,25691.0,0.99035122]
[1694090591830,0.15064554,25692.0,25691.0,0.99035122]
[1694090592496,0.15064554,25692.0,25691.0,1.76883322]
[1694090592497,0.05744121,25692.0,25691.0,1.76883322]
[1694090593381,0.05744121,25692.0,25691.0,0.99035122]
[1694090594139,0.05744121,25692.0,25691.0,0.67035122]
[1694090594140,0.06529873,25692.0,25691.0,0.67035122]
[1694090596465,0.06529873,25692.0,25691.0,0.57035122]
[1694090596683,0.06529873,25692.0,25691.0,0.67035122]
[1694090598016,0.06529873,25692.0,25691.0,0.57035122]
[1694090598267,0.06529873,25692.0,25691.0,0.67035122]
[1694090599422,0.05744121,25692.0,25691.0,2.22731522]
[1694090599655,0.05744121,25692.0,25691.0,3.00579722]
[1694090600317,0.05744121,25692.0,25691.0,0.67035122]
[1694090600318,0.06577213,25692.0,25691.0,0.67035122]
[1694090606473,0.06577213,25692.0,25691.0,0.59035122]
[1694090607990,0.06577213,25692.0,25691.0,1.36883322]
[1694090608609,0.15897646,25692.0,25691.0,1.36883322]
[1694090608995,0.06577213,25692.0,25691.0,1.36883322]
[1694090612048,2.49429283,25692.0,25691.0,0.181798]
[1694090612260,2.54089499,25692.0,25691.0,0.181798]
[1694090612907,1.76244299,25692.0,25691.0,0.181798]
[1694090614619,0.9756997,25692.0,25691.0,0.22091575]
[1694090615117,0.1972477,25692.0,25691.0,0.22091575]
[1694090616608,0.38363888,25692.0,25691.0,0.22091575]
[1694090618387,0.38363888,25692.0,25691.0,0.99939775]
[1694090618649,0.24383239,25692.0,25691.0,2.16643297]
[1694090618839,0.38343029,25692.0,25691.0,2.16643297]
[1694090619214,0.38343029,25692.0,25691.0,0.60946897]
[1694090619644,0.24383239,25692.0,25691.0,0.60946897]
[1694090620648,0.26674068,25692.0,25691.0,0.60946897]
[1694090621340,0.26674068,25692.0,25691.0,1.38795097]
[1694090621552,0.49972468,25692.0,25691.0,1.38795097]
[1694090622338,0.49972468,25692.0,25691.0,0.60946897]
[1694090622551,0.49972468,25692.0,25691.0,1.38795097]
[1694090623167,0.49972468,25692.0,25691.0,0.60946897]
[1694090623757,0.3133335,25692.0,25691.0,0.60946897]
[1694090625763,0.0803495,25692.0,25691.0,0.60946897]
[1694090626129,0.0803495,25692.0,25691.0,0.57035122]
[1694090640299,0.8588015,25692.0,25691.0,0.57035122]
[1694090642443,0.0803495,25692.0,25691.0,0.57035122]
[1694090645596,0.0803495,25692.0,25691.0,0.61576998]
[1694090652113,1.6372535,25692.0,25691.0,0.61576998]
[1694090653969,0.8588015,25692.0,25691.0,0.61576998]
[1694090660393,1.6372535,25692.0,25691.0,0.61576998]
[1694090660889,0.8588015,25692.0,25691.0,0.61576998]
[1694090664414,0.0803495,25692.0,25691.0,0.61576998]
[1694090667980,0.8588015,25692.0,25691.0,0.61576998]
[1694090672782,0.8588015,25692.0,25691.0,0.57035122]
[1694090674900,1.6372535,25692.0,25691.0,0.57035122]
[1694090676952,2.4157055,25692.0,25691.0,0.57035122]
[1694090677152,1.6372535,25692.0,25691.0,0.57035122]
[1694090681980,0.8588015,25692.0,25691.0,0.57035122]
[1694090682463,0.8588015,25692.0,25691.0,0.61762107]
[1694090685214,0.0803495,25692.0,25691.0,0.61762107]
[1694090685426,0.0803495,25692.0,25691.0,1.39610307]
[1694090687098,0.05744121,25692.0,25691.0,1.39610307]
[1694090687761,0.05744121,25692.0,25691.0,0.61762107]
[1694090691643,0.83589321,25692.0,25691.0,0.61762107]
[1694090694135,0.85884116,25692.0,25691.0,0.61762107]
[1694090696236,0.83589321,25692.0,25691.0,0.61762107]
[1694090696803,1.61434521,25692.0,25691.0,0.61762107]
[1694090698299,2.6722117,25692.0,25691.0,0.181798]
[1694090698950,2.39279721,25692.0,25691.0,0.181798]
[1694090701463,2.39279721,25692.0,25691.0,0.026]
[1694090704537,2.40005804,25692.0,25691.0,0.026]
[1694090704759,2.67947253,25692.0,25691.0,0.026]
[1694090707509,1.90102053,25692.0,25691.0,0.026]
[1694090708175,0.34411653,25692.0,25691.0,0.026]
[1694090708394,0.3368557,25692.0,25691.0,0.026]
[1694090709453,1.1153077,25692.0,25691.0,0.026]
[1694090710783,0.3368557,25692.0,25691.0,0.026]
[1694090711215,1.1153077,25692.0,25691.0,0.026]
[1694090711459,1.8937597,25692.0,25691.0,0.026]
[1694090718080,1.1153077,25692.0,25691.0,0.026]
[1694090718637,0.3368557,25692.0,25691.0,0.026]
[1694090720958,0.3368557,25692.0,25691.0,1.3809748]
[1694090721192,0.05744121,25692.0,25691.0,1.3809748]
[1694090723496,0.05744121,25692.0,25691.0,0.6024928]
[1694090724770,0.05744121,25692.0,25691.0,1.3809748]
[1694090726422,0.05744121,25692.0,25691.0,0.6024928]
[1694090728309,0.05744121,25692.0,25691.0,1.3809748]
[1694090729349,0.05744121,25692.0,25691.0,0.6024928]
[1694090731157,0.05744121,25692.0,25691.0,1.19303522]
[1694090731810,0.24399083,25692.0,25691.0,2.87069922]
[1694090732025,0.19736098,25692.0,25691.0,2.87069922]
[1694090732205,0.29063864,25692.0,25691.0,2.87069922]
[1694090732414,0.15071887,25692.0,25691.0,2.87069922]
[1694090732833,0.09527766,25692.0,25691.0,2.87069922]
[1694090733046,0.09527766,25692.0,25691.0,3.17069922]
[1694090733513,0.002,25692.0,25691.0,3.17069922]
[1694090733727,0.09527766,25692.0,25691.0,3.17069922]
[1694090733941,0.15169037,25692.0,25691.0,3.17069922]
[1694090734384,0.15169037,25692.0,25691.0,3.39443091]
[1694090734603,0.15169037,25692.0,25691.0,3.17069922]
[1694090734604,0.29161014,25692.0,25691.0,3.17069922]
[1694090734813,0.15169037,25692.0,25691.0,3.17069922]
[1694090735498,0.05841271,25692.0,25691.0,3.17069922]
[1694090740161,0.05841271,25692.0,25691.0,3.23705922]
[1694090740361,0.05841271,25692.0,25691.0,3.23681922]
[1694090740566,0.002,25692.0,25691.0,3.23675922]
[1694090740723,0.002,25692.0,25691.0,3.23657922]
[1694090740927,0.002,25692.0,25691.0,3.23621922]
[1694090741129,0.002,25692.0,25691.0,3.17069922]
[1694090741774,0.002,25692.0,25691.0,3.23633922]
[1694090741979,0.002,25692.0,25691.0,3.17069922]
[1694090742385,0.002,25692.0,25691.0,3.23675922]
[1694090742761,0.002,25692.0,25691.0,3.31951922]
[1694090743011,0.002,25692.0,25691.0,3.31957922]
[1694090743193,0.002,25692.0,25691.0,3.29945922]
[1694090743395,0.002,25692.0,25691.0,3.29927922]
[1694090743570,0.002,25692.0,25691.0,3.30737922]
[1694090743782,0.002,25692.0,25691.0,3.30299922]
[1694090743984,0.002,25692.0,25691.0,3.23069922]
[1694090744712,0.05844693,25692.0,25691.0,3.23069922]
[1694090745046,0.002,25692.0,25691.0,3.23069922]
[1694090745245,0.002,25692.0,25691.0,3.63959922]
[1694090746252,0.002,25692.0,25691.0,3.71279922]
[1694090746459,0.002,25692.0,25691.0,3.71351922]
[1694090746662,0.002,25692.0,25691.0,3.71315922]
[1694090746867,0.002,25692.0,25691.0,3.63959922]
[1694090747521,0.05844693,25692.0,25691.0,3.63959922]
[1694090761880,0.05844693,25692.0,25691.0,3.82311525]
[1694090762075,0.05844693,25692.0,25691.0,3.63959922]
[1694090762292,0.05844693,25692.0,25691.0,2.45221722]
[1694090762741,0.05844693,25692.0,25691.0,2.69617726]
[1694090763198,0.05844693,25692.0,25691.0,3.47465926]
[1694090763406,0.05844693,25692.0,25691.0,3.23069922]
[1694090765457,0.05844693,25692.0,25691.0,3.63959922]
[1694090765901,0.05844693,25692.0,25691.0,3.87159864]
[1694090766296,0.05844693,25692.0,25691.0,4.06409864]
[1694090768313,0.05844693,25692.0,25691.0,3.83209922]
[1694090769060,0.05844693,25692.0,25691.0,4.08566353]
[1694090769691,0.05844693,25692.0,25691.0,3.83209922]
[1694090769908,0.05844693,25692.0,25691.0,4.08491142]
[1694090770119,0.05844693,25692.0,25691.0,4.07286141]
[1694090770968,0.05844693,25692.0,25691.0,3.83209922]
[1694090772330,0.05844693,25692.0,25691.0,4.03130907]
[1694090776598,0.15158084,25692.0,25691.0,4.03130907]
[1694090777002,0.05844693,25692.0,25691.0,4.03130907]
[1694090777209,0.15158084,25692.0,25691.0,4.03130907]
[1694090777403,0.15158084,25692.0,25691.0,3.62240907]
[1694090787004,0.05844693,25692.0,25691.0,3.62240907]
[1694090787198,0.15158084,25692.0,25691.0,3.62240907]
[1694090793653,0.05844693,25692.0,25691.0,3.62240907]
[1694090794806,0.09313391,25693.0,25691.0,3.62240907]
[1694090795012,0.09313391,25693.0,25692.0,0.81700672]
[1694090795215,0.09313391,25693.0,25692.0,3.34284178]
[1694090796191,0.10113391,25693.0,25692.0,3.34284178]
[1694090796611,0.10613391,25693.0,25692.0,3.34284178]
[1694090797174,0.10113391,25693.0,25692.0,3.34284178]
[1694090798000,0.10613391,25693.0,25692.0,3.34384178]
[1694090799804,0.24583478,25693.0,25692.0,3.34384178]
[1694090800907,0.24583478,25693.0,25692.0,1.78693778]
[1694090801132,0.43210262,25693.0,25692.0,0.69730672]
[1694090801344,1.27908714,25693.0,25692.0,0.69730672]
[1694090801569,0.50066514,25693.0,25692.0,0.67430672]
[1694090801996,0.31439731,25693.0,25692.0,0.37430672]
[1694090802446,0.50091564,25693.0,25692.0,0.37430672]
[1694090802659,0.55695623,25693.0,25692.0,0.37430672]
[1694090803163,0.55695623,25693.0,25692.0,0.39730672]
[1694090808341,0.32412144,25693.0,25692.0,0.39730672]
[1694090809908,0.25555892,25693.0,25692.0,0.39730672]
[1694090816676,0.25549038,25693.0,25692.0,0.39730672]
[1694090817101,0.48855261,25693.0,25692.0,0.39730672]
[1694090817306,0.25549038,25693.0,25692.0,0.39730672]
[1694090817506,1.03391238,25693.0,25692.0,0.39730672]
[1694090817757,1.26697461,25693.0,25692.0,0.39730672]
[1694090818007,1.26697461,25693.0,25692.0,0.024]
[1694090818229,1.26697461,25693.0,25692.0,0.001]
[1694090818230,2.87671639,25693.0,25692.0,0.001]
[1694090818436,3.13786727,25693.0,25692.0,0.001]
[1694090818722,3.07696127,25693.0,25692.0,0.001]
[1694090819445,0.08778,25692.0,25688.0,0.370796]
[1694090819704,0.23293938,25689.0,25688.0,0.75934922]
[1694090819917,1.01148238,25689.0,25688.0,0.78234922]
[1694090820130,1.06751811,25689.0,25688.0,0.78234922]
[1694090821892,0.92775448,25689.0,25688.0,0.78234922]
[1694090822518,1.70629748,25689.0,25688.0,0.78234922]
[1694090822759,1.70829748,25689.0,25688.0,0.78234922]
[1694090823613,1.70829748,25689.0,25688.0,0.82113676]
[1694090824912,0.05803573,25689.0,25688.0,0.78234922]
[1694090825124,0.05803573,25689.0,25688.0,1.70947599]
[1694090825782,0.05803573,25689.0,25688.0,0.93090299]
[1694090827744,0.83657873,25689.0,25688.0,0.93090299]
[1694090829887,0.83657873,25689.0,25688.0,0.78234922]
[1694090829888,1.70829748,25689.0,25688.0,0.78234922]
[1694090831541,1.61512173,25689.0,25688.0,0.78234922]
[1694090832995,1.70829748,25689.0,25688.0,0.78234922]
[1694090833776,2.48684048,25689.0,25688.0,0.78234922]
[1694090834718,2.39366473,25689.0,25688.0,0.78234922]
[1694090837741,1.61512173,25689.0,25688.0,0.78234922]
[1694090841796,1.70829748,25689.0,25688.0,0.78234922]
[1694090842013,1.61512173,25689.0,25688.0,0.78234922]
[1694090846196,1.70829748,25689.0,25688.0,0.78234922]
[1694090850403,1.70829748,25689.0,25688.0,0.81308239]
[1694090851285,1.84806111,25689.0,25688.0,0.81308239]
[1694090851484,1.70829748,25689.0,25688.0,0.81308239]
[1694090852979,1.84806111,25689.0,25688.0,0.81308239]
[1694090853180,1.70829748,25689.0,25688.0,0.81308239]
[1694090853387,1.84806111,25689.0,25688.0,0.81308239]
[1694090856336,1.75488536,25689.0,25688.0,0.81308239]
[1694090857324,1.61512173,25689.0,25688.0,0.81308239]
[1694090857671,1.75485025,25689.0,25688.0,0.81308239]
[1694090858308,1.80142642,25689.0,25688.0,0.81308239]
[1694090859961,1.94117585,25689.0,25688.0,0.81308239]
[1694090860164,1.94117585,25689.0,25688.0,0.78234922]
[1694090860595,1.80142642,25689.0,25688.0,0.78234922]
[1694090860800,1.94119505,25689.0,25688.0,0.78234922]
[1694090861446,1.80142642,25689.0,25688.0,0.78234922]
[1694090863541,2.03430728,25689.0,25688.0,0.78234922]
[1694090863741,1.84800259,25689.0,25688.0,0.78234922]
[1694090864687,2.03448269,25689.0,25688.0,0.78234922]
[1694090870901,2.62654559,25689.0,25688.0,0.78234922]
[1694090873825,1.84800259,25689.0,25688.0,0.78234922]
[1694090874654,2.62654559,25689.0,25688.0,0.78234922]
[1694090876602,2.39366473,25689.0,25688.0,0.78234922]
[1694090876829,2.62684401,25689.0,25688.0,0.78234922]
[1694090877777,1.84830101,25689.0,25688.0,0.78234922]
[1694090878014,0.47776533,25689.0,25688.0,0.90541066]
[1694090883183,0.19794518,25689.0,25688.0,2.46255666]
[1694090884062,0.3844955,25689.0,25688.0,1.68398366]
[1694090884270,0.3844955,25689.0,25688.0,0.90541066]
[1694090884517,0.19794518,25689.0,25688.0,0.90541066]
[1694090890694,0.3844955,25689.0,25688.0,0.90541066]
[1694090894489,0.47776533,25689.0,25688.0,0.90541066]
[1694090894724,1.61512173,25689.0,25688.0,0.78234922]
[1694090895191,1.84820524,25689.0,25688.0,0.78234922]
[1694090909866,1.06966224,25689.0,25688.0,0.78234922]
[1694090910733,0.83657873,25689.0,25688.0,0.78234922]
[1694090911357,1.06952774,25689.0,25688.0,0.78234922]
[1694090911487,1.06952387,25689.0,25688.0,0.78234922]
[1694090919692,2.62660987,25689.0,25688.0,0.78234922]
[1694090919857,2.39366473,25689.0,25688.0,0.78234922]
[1694090920107,2.47330955,25689.0,25688.0,0.78234922]
[1694090920512,1.69476655,25689.0,25688.0,0.78234922]
[1694090940747,2.47330955,25689.0,25688.0,0.78234922]
[1694090940948,1.69476655,25689.0,25688.0,0.78234922]
[1694090941569,2.47330955,25689.0,25688.0,0.78234922]
[1694090943609,2.47330955,25689.0,25688.0,0.393796]
[1694090944413,2.59400955,25689.0,25688.0,0.393796]
[1694090946949,2.59300955,25689.0,25688.0,0.393796]
[1694090947163,2.59200955,25689.0,25688.0,0.393796]
[1694090947379,2.61500955,25689.0,25688.0,0.393796]
[1694090947605,2.63900955,25689.0,25688.0,0.393796]
[1694090947828,2.59200955,25689.0,25688.0,0.393796]
[1694090948293,2.55936473,25689.0,25688.0,0.393796]
[1694090948529,2.98616703,25689.0,25688.0,0.393796]
[1694090948752,3.06616703,25689.0,25688.0,0.393796]
[1694090948986,2.84192192,25689.0,25688.0,0.393796]
[1694090950831,2.75547781,25689.0,25688.0,0.393796]
[1694090951077,2.82521893,25689.0,25688.0,0.393796]
[1694090951317,2.75547781,25689.0,25688.0,0.393796]
[1694090951549,2.81834579,25689.0,25688.0,0.393796]
[1694090951823,2.69547781,25689.0,25688.0,0.393796]
[1694090952049,2.83547781,25689.0,25688.0,0.370796]
[1694090952306,3.14985164,25689.0,25688.0,0.370796]
[1694090953839,2.81147781,25689.0,25688.0,0.370796]
[1694090954079,2.78847781,25689.0,25688.0,0.370796]
[1694090954311,2.81247781,25689.0,25688.0,0.370796]
[1694090954526,2.78847781,25689.0,25688.0,0.370796]
[1694090954752,3.12685164,25689.0,25688.0,0.370796]
[1694090955236,0.5089,25686.0,25678.0,0.0200988]
[1694090955463,0.09305438,25680.0,25678.0,0.0200988]
[1694090955705,1.59525142,25679.0,25678.0,0.0200988]
[1694090955920,2.37409742,25679.0,25678.0,0.0200988]
[1694090956140,1.557692,25679.0,25678.0,0.0200988]
[1694090957047,1.557692,25679.0,25678.0,0.0430988]
[1694090957264,1.557692,25679.0,25678.0,0.09343487]
[1694090957508,0.09305438,25680.0,25678.0,0.47698809]
[1694090957730,0.09305438,25680.0,25679.0,0.41155322]
[1694090957952,0.23263595,25682.0,25679.0,1.96924522]
[1694090958173,1.01139495,25682.0,25679.0,1.96924522]
[1694090958403,1.01139495,25682.0,25679.0,1.19039522]
[1694090958404,0.09305438,25682.0,25679.0,1.19039522]
[1694090958626,0.87181238,25682.0,25679.0,0.53225322]
[1694090958856,2.50636115,25682.0,25679.0,0.41155322]
[1694090959066,0.005,25680.0,25679.0,0.41155322]
[1694090959482,0.06135398,25680.0,25679.0,0.55511433]
[1694090960251,0.06135398,25680.0,25679.0,0.41155322]
[1694090960446,0.06135398,25680.0,25679.0,0.53225322]
[1694090960673,0.06835398,25680.0,25679.0,1.31109922]
[1694090960874,0.06835398,25680.0,25679.0,1.19039922]
[1694090961077,0.06835398,25680.0,25679.0,1.36703545]
[1694090961396,0.06335398,25680.0,25679.0,1.36703545]
[1694090961632,0.06335398,25680.0,25679.0,0.58818945]
[1694090962307,0.06335398,25680.0,25679.0,0.41155322]
[1694090963437,0.06835398,25680.0,25679.0,0.41155322]
[1694090963682,1.69505479,25680.0,25679.0,0.41155322]
[1694090965610,2.47387079,25680.0,25679.0,0.41155322]
[1694090976260,2.47387079,25680.0,25679.0,0.023]
[1694090978362,2.59457079,25680.0,25679.0,0.023]
[1694090980740,2.59457079,25680.0,25678.0,0.0150988]
[1694090980741,0.16,25679.0,25678.0,0.0150988]
[1694090980981,2.45898125,25679.0,25678.0,0.0150988]
[1694090981203,3.2974636,25679.0,25678.0,0.0150988]
[1694090981414,3.20465195,25679.0,25678.0,0.0150988]
[1694090981624,3.15822521,25679.0,25678.0,0.0150988]
[1694090981851,2.62967199,25679.0,25678.0,0.0150988]
[1694090982082,2.39617711,25679.0,25678.0,0.0150988]
[1694090982309,2.46496383,25679.0,25678.0,0.0150988]
[1694090982998,2.46496383,25679.0,25678.0,0.0380988]
[1694090983418,2.47696383,25679.0,25678.0,0.0380988]
[1694090994412,2.59766383,25679.0,25678.0,0.0380988]
[1694090996751,2.69045871,25679.0,25678.0,0.0380988]
[1694090997555,2.82968033,25679.0,25678.0,0.0380988]
[1694090997665,2.73688545,25679.0,25678.0,0.0380988]
[1694090998102,2.78285489,25679.0,25678.0,0.0150988]
[1694090998314,2.92222971,25679.0,25678.0,0.0150988]
[1694090998529,2.78285489,25679.0,25678.0,0.0150988]
[1694091001580,2.71461775,25679.0,25678.0,0.0150988]
[1694091002158,2.79171509,25679.0,25678.0,0.0150988]
[1694091002438,2.83815025,25679.0,25678.0,0.0150988]
[1694091002618,3.02400675,25679.0,25678.0,0.0150988]
[1694091002747,2.83815025,25679.0,25678.0,0.0150988]
[1694091003155,3.14960613,25679.0,25678.0,0.0150988]
[1694091004457,3.55850613,25679.0,25678.0,0.0150988]
[1694091004655,3.78633033,25679.0,25678.0,0.0150988]
[1694091004861,3.85311033,25679.0,25678.0,0.0150988]
[1694091004979,3.78633033,25679.0,25678.0,0.0150988]
[1694091005767,3.85287033,25679.0,25678.0,0.0150988]
[1694091005954,3.78633033,25679.0,25678.0,0.0150988]
[1694091006945,3.85341033,25679.0,25678.0,0.0150988]
[1694091007150,3.78633033,25679.0,25678.0,0.0150988]
[1694091007347,0.06,25677.0,25672.0,0.00013]
[1694091007560,0.06,25677.0,25672.0,0.02313]
[1694091007561,0.1207,25673.0,25672.0,0.02313]
[1694091007805,1.678756,25673.0,25672.0,0.02313]
[1694091008434,3.31951498,25673.0,25672.0,0.02313]
[1694091009068,3.32151498,25673.0,25672.0,0.02313]
[1694091011596,3.34151498,25673.0,25672.0,0.00013]
[1694091011805,3.35370656,25673.0,25672.0,0.00013]
[1694091012224,4.29115978,25673.0,25672.0,0.00013]
[1694091012467,4.29115978,25673.0,25667.0,0.01989699]
[1694091012468,0.08,25669.0,25667.0,0.01989699]
[1694091012668,2.33754,25668.0,25667.0,0.01989699]
[1694091012882,2.33254,25668.0,25667.0,0.01989699]
[1694091013140,2.33254,25668.0,25667.0,0.18860687]
[1694091013352,2.33254,25668.0,25667.0,0.01489699]
[1694091013353,2.45324,25668.0,25667.0,0.01489699]
[1694091013978,2.5356531,25668.0,25667.0,0.01489699]
[1694091014225,2.5356531,25668.0,25667.0,0.00989699]
[1694091015050,2.5366531,25668.0,25667.0,0.00989699]
[1694091015264,2.45424,25668.0,25667.0,0.00989699]
[1694091015550,0.001,25668.0,25667.0,0.19531328]
[1694091015751,0.001,25668.0,25667.0,0.21831328]
[1694091015960,0.002,25668.0,25667.0,0.21831328]
[1694091016175,0.78118,25668.0,25667.0,0.21831328]
[1694091017519,0.002,25668.0,25667.0,0.21831328]
[1694091018361,2.46024,25668.0,25667.0,0.00989699]
[1694091018574,2.53718315,25668.0,25667.0,0.00989699]
[1694091019211,2.53854171,25668.0,25667.0,0.00989699]
[1694091019832,2.59630894,25668.0,25667.0,0.00989699]
[1694091020914,2.59530894,25668.0,25667.0,0.00989699]
[1694091021318,2.60030894,25668.0,25667.0,0.00989699]
[1694091021564,2.47960894,25668.0,25667.0,0.03289699]
[1694091021764,2.47860894,25668.0,25667.0,0.03289699]
[1694091021976,2.47360894,25668.0,25667.0,0.03289699]
[1694091022182,2.48060894,25668.0,25667.0,0.03289699]
[1694091022390,2.47860894,25668.0,25667.0,0.03289699]
[1694091022577,2.48560894,25668.0,25667.0,0.03289699]
[1694091022790,2.60630894,25668.0,25667.0,0.03289699]
[1694091024349,2.60630894,25668.0,25667.0,0.02789699]
[1694091027958,3.77574045,25668.0,25667.0,0.00489699]
[1694091028762,3.85475919,25668.0,25667.0,0.00489699]
[1694091029782,3.46620597,25668.0,25667.0,0.00489699]
[1694091031493,3.38620597,25668.0,25667.0,0.00489699]
[1694091031703,1.70714597,25668.0,25667.0,0.00489699]
[1694091031916,1.70714597,25668.0,25667.0,0.02789699]
[1694091031917,2.48632597,25668.0,25667.0,0.02789699]
[1694091032132,0.06976723,25668.0,25667.0,0.02789699]
[1694091032347,0.06976723,25668.0,25667.0,0.1527527]
[1694091032567,0.84894723,25668.0,25667.0,0.1527527]
[1694091032785,2.40730723,25668.0,25667.0,0.1527527]
[1694091033874,2.40730723,25668.0,25667.0,0.02789699]
[1694091039727,1.62812723,25668.0,25667.0,0.02789699]
[1694091042242,2.40730723,25668.0,25667.0,0.02789699]
[1694091042861,1.62812723,25668.0,25667.0,0.02789699]
[1694091043250,2.40730723,25668.0,25667.0,0.02789699]
[1694091045357,2.39230723,25668.0,25667.0,0.02789699]
[1694091045774,2.40687986,25668.0,25667.0,0.02789699]
[1694091050981,2.39687986,25668.0,25667.0,0.02789699]
[1694091051651,2.46378028,25668.0,25667.0,0.02789699]
[1694091051861,2.46854212,25668.0,25667.0,0.00489699]
[1694091052519,2.58924212,25668.0,25667.0,0.00489699]
[1694091052713,2.60571703,25668.0,25667.0,0.00489699]
[1694091052940,2.69856731,25668.0,25667.0,0.00489699]
[1694091053158,2.60571703,25668.0,25667.0,0.00489699]
[1694091053610,2.48501703,25668.0,25667.0,0.00489699]
[1694091053800,2.57786731,25668.0,25667.0,0.02789699]
[1694091055199,2.48501703,25668.0,25667.0,0.02789699]
[1694091055627,2.57786731,25668.0,25667.0,0.02789699]
[1694091056902,2.62429246,25668.0,25667.0,0.02789699]
[1694091057309,2.62429246,25668.0,25667.0,0.02289699]
[1694091058034,2.80998235,25668.0,25667.0,0.02289699]
[1694091058201,2.62429246,25668.0,25667.0,0.02289699]
[1694091058401,2.80998235,25668.0,25667.0,0.02289699]
[1694091058981,2.67070692,25668.0,25667.0,0.02289699]
[1694091061790,2.90282064,25668.0,25667.0,0.02289699]
[1694091062646,2.71713075,25668.0,25667.0,0.02289699]
[1694091064985,2.48501703,25668.0,25667.0,0.02289699]
[1694091065355,2.71761108,25668.0,25667.0,0.02289699]
[1694091074867,2.71261108,25668.0,25667.0,0.02289699]
[1694091075079,2.83331108,25668.0,25667.0,0.02289699]
[1694091075282,2.84931108,25668.0,25667.0,0.02289699]
[1694091075488,2.87331108,25668.0,25667.0,0.02289699]
[1694091080076,2.86331108,25668.0,25667.0,0.02289699]
[1694091080395,2.88272284,25668.0,25667.0,0.02289699]
[1694091082958,2.76202284,25668.0,25667.0,0.02289699]
[1694091090574,2.52942879,25668.0,25667.0,0.02289699]
[1694091096533,0.33645003,25668.0,25667.0,0.19749316]
[1694091098805,0.33645003,25668.0,25667.0,0.02289699]
[1694091099016,0.28993373,25668.0,25667.0,2.09057021]
[1694091099230,0.28993373,25668.0,25667.0,2.25696552]
[1694091099641,0.42957452,25668.0,25667.0,2.25696552]
[1694091099841,0.40657452,25668.0,25667.0,2.25696552]
[1694091100045,0.22039241,25668.0,25667.0,2.25696552]
[1694091100254,0.19739241,25668.0,25667.0,2.25996552]
[1694091100486,0.19739241,25668.0,25667.0,2.26061713]
[1694091100693,0.19839241,25668.0,25667.0,2.26261713]
[1694091101323,0.29146351,25668.0,25667.0,1.48340713]
[1694091103026,0.15182272,25668.0,25667.0,1.48340713]
[1694091105589,0.15182272,25668.0,25667.0,2.95478021]
[1694091105756,0.05875162,25668.0,25667.0,3.36894021]
[1694091105895,0.05875162,25668.0,25667.0,3.37770021]
[1694091106070,0.05875162,25668.0,25667.0,3.36846021]
[1694091106509,0.05875162,25668.0,25667.0,3.44256021]
[1694091106510,0.002,25668.0,25667.0,3.44256021]
[1694091106711,0.001,25668.0,25667.0,3.43830021]
[1694091106913,0.001,25668.0,25667.0,3.43818021]
[1694091107115,0.003,25668.0,25667.0,3.44358021]
[1694091107322,0.003,25668.0,25667.0,3.44124021]
[1694091107529,0.002,25668.0,25667.0,3.43876021]
[1694091107749,0.003,25668.0,25667.0,3.44288021]
[1694091107955,0.003,25668.0,25667.0,3.44306021]
[1694091108159,0.003,25668.0,25667.0,3.44978021]
[1694091108361,0.003,25668.0,25667.0,3.44990021]
[1694091108570,0.003,25668.0,25667.0,3.45638021]
[1694091108770,0.003,25668.0,25667.0,3.45368021]
[1694091108976,0.003,25668.0,25667.0,3.45440021]